fUSD/lending_fUSD_20240104
["ID","MTS","AMOUNT","RATE_DAILY","PERIOD"]
[310189111,1704393072964,-1535.97,0.00033972,2]
[310189112,1704393072975,-1513.83,0.00033972,2]
[310189113,1704393073200,-500.0,0.00033972,2]
[310189114,1704393073218,-890.61,0.00033972,2]
[310189115,1704393073228,-500.0,0.00033972,2]
[310189116,1704393073238,-500.0,0.00033972,2]
[310189117,1704393073249,-565.49,0.00033972,2]
[310189118,1704393073259,-500.0,0.00033972,2]
[310189119,1704393073269,-576.87,0.00033972,2]
[310189120,1704393073280,-1916.01,0.00033972,2]
[310189121,1704393073290,-500.0,0.00033972,2]
[310189122,1704393073300,-4181.93,0.00033972,2]
[310189123,1704393073311,-2086.82,0.00033972,2]
[310189124,1704393073321,-500.0,0.00033972,2]
[310189125,1704393073331,-500.0,0.00033972,2]
[310189126,1704393073341,-637.98,0.00033972,2]
[310189127,1704393073351,-809.81,0.00033972,2]
[310189128,1704393073362,-500.0,0.00033972,2]
[310189129,1704393073373,-651.52,0.00033972,2]
[310189130,1704393073384,-500.0,0.00033972,2]
[310189131,1704393073394,-500.0,0.00033972,2]
[310189132,1704393073404,-500.0,0.00033972,2]
[310189133,1704393073414,-7865.29,0.00033972,2]
[310189134,1704393073425,-509.18668929,0.00033972,2]
[310189135,1704393073434,-500.0,0.00033972,2]
[310189136,1704393073446,-507.06546253,0.00033972,2]
[310189137,1704393073456,-1084.98,0.00033972,2]
[310189138,1704393073467,-1422.0,0.00033972,2]
[310189139,1704393073478,-500.0,0.00033972,2]
[310189140,1704393073488,-558.54,0.00033972,2]
[310189141,1704393073499,-500.0,0.00033972,2]
[310189142,1704393073510,-560.45,0.00033972,2]
[310189143,1704393073521,-500.0,0.00033972,2]
[310189144,1704393073531,-688.44,0.00033972,2]
[310189145,1704393073543,-1827.5,0.00033972,2]
[310189146,1704393073555,-590.76,0.00033972,2]
[310189147,1704393073567,-500.0,0.00033972,2]
[310189148,1704393073579,-500.0,0.00033972,2]
[310189149,1704393073590,-500.0,0.00033972,2]
[310189150,1704393073600,-500.0,0.00033972,2]
[310189151,1704393073610,-563.32,0.00033972,2]
[310189152,1704393073620,-614.15,0.00033972,2]
[310189153,1704393073629,-1496.86,0.00033972,2]
[310189154,1704393073641,-1622.69,0.00033972,2]
[310189155,1704393073651,-7567.89,0.00033972,2]
[310189156,1704393073661,-973.05,0.00033972,2]
[310189157,1704393073672,-1943.22,0.00033972,2]
[310189158,1704393073683,-500.0,0.00033972,2]
[310189159,1704393073693,-500.0,0.00033972,2]
[310189160,1704393073703,-832.65,0.00033972,2]
[310189161,1704393073714,-751.43,0.00033972,2]
[310189162,1704393073724,-500.0,0.00033972,2]
[310189163,1704393073735,-500.0,0.00033972,2]
[310189164,1704393073746,-500.0,0.00033972,2]
[310189165,1704393073756,-500.0,0.00033972,2]
[310189166,1704393073765,-894.18,0.00033972,2]
[310189167,1704393073775,-500.0,0.00033972,2]
[310189168,1704393073784,-500.0,0.00033972,2]
[310189169,1704393073794,-623.42,0.00033972,2]
[310189170,1704393073804,-500.0,0.00033972,2]
[310189171,1704393073816,-545.14,0.00033972,2]
[310189172,1704393073825,-500.0,0.00033972,2]
[310189173,1704393073836,-500.0,0.00033972,2]
[310189174,1704393073845,-1914.26,0.00033972,2]
[310189175,1704393073856,-500.0,0.00033972,2]
[310189176,1704393073866,-500.0,0.00033972,2]
[310189177,1704393073876,-500.0,0.00033972,2]
[310189178,1704393073886,-1641.84,0.00033972,2]
[310189179,1704393073898,-602.53,0.00033972,2]
[310189180,1704393073908,-500.0,0.00033972,2]
[310189181,1704393073918,-874.07,0.00033972,2]
[310189182,1704393073929,-500.0,0.00033972,2]
[310189183,1704393073942,-500.0,0.00033972,2]
[310189184,1704393073956,-742.9,0.00033972,2]
[310189185,1704393073968,-616.85,0.00033972,2]
[310189186,1704393073979,-500.0,0.00033972,2]
[310189187,1704393073989,-500.0,0.00033972,2]
[310189188,1704393073998,-500.0,0.00033972,2]
[310189189,1704393074007,-500.0,0.00033972,2]
[310189190,1704393074017,-1626.8,0.00033972,2]
[310189191,1704393074026,-301.37115561,0.00033972,2]
[310189192,1704393074036,-500.0,0.00033972,2]
[310189193,1704393074045,-1682.88,0.00033972,2]
[310189194,1704393074054,-413.57232369,0.00033972,2]
[310189195,1704393074063,-500.0,0.00033972,2]
[310189196,1704393074073,-500.0,0.00033972,2]
[310189197,1704393074082,-500.0,0.00033972,2]
[310189198,1704393074091,-500.0,0.00033972,2]
[310189199,1704393074101,-500.0,0.00033972,2]
[310189200,1704393074110,-1646.14,0.00033972,2]
[310189201,1704393074120,-2169.3,0.00033972,2]
[310189202,1704393074130,-500.0,0.00033972,2]
[310189203,1704393074139,-500.0,0.00033972,2]
[310189204,1704393074149,-500.0,0.00033972,2]
[310189205,1704393074159,-1635.2,0.00033972,2]
[310189206,1704393074169,-882.54,0.00033972,2]
[310189207,1704393074178,-500.0,0.00033972,2]
[310189208,1704393074187,-500.0,0.00033972,2]
[310189209,1704393074197,-644.49,0.00033972,2]
[310189210,1704393074207,-500.0,0.00033972,2]
[310189211,1704393074219,-500.0,0.00033972,2]
[310189212,1704393074229,-1057.84,0.00033972,2]
[310189213,1704393074239,-500.0,0.00033972,2]
[310189214,1704393074248,-500.0,0.00033972,2]
[310189215,1704393074258,-539.45,0.00033972,2]
[310189216,1704393074267,-1064.36,0.00033972,2]
[310189217,1704393074277,-552.50572333,0.00033972,2]
[310189218,1704393074286,-2032.28,0.00033972,2]
[310189219,1704393074296,-1022.82,0.00033972,2]
[310189220,1704393074307,-1198.45,0.00033972,2]
[310189221,1704393074316,-500.0,0.00033972,2]
[310189222,1704393074326,-500.0,0.00033972,2]
[310189223,1704393074335,-500.0,0.00033972,2]
[310189224,1704393074344,-162.77,0.00033973,2]
[310189225,1704393074356,-1000.0,0.00034,4]
[310189226,1704393074365,-557.28934285,0.00034,4]
[310189227,1704393074375,-1000.0,0.00034,2]
[310189228,1704393074384,-158.86,0.00034,2]
[310189229,1704393074395,-158.86,0.00034,2]
[310189230,1704393074404,-363.11,0.00034024,2]
[310189231,1704393074414,-158.06,0.00034033,2]
[310189232,1704393074423,-572.33880898,0.00034137,6]
[310189233,1704393074433,-345.38891133,0.00034146,6]
[310189234,1704393074442,-6022.23496664,0.00034146,2]
[310189235,1704393074452,-1323.39739205,0.00034146,2]
[310189236,1704393074461,-363.11,0.00034196,2]
[310189237,1704393074471,-206.29797334,0.00034236,2]
[310189238,1704393074480,-500.0,0.00034245,2]
[310189239,1704393074489,-500.0,0.00034246,2]
[310189240,1704393074499,-500.0,0.00034246,2]
[310189241,1704393074509,-500.0,0.00034246,2]
[310189242,1704393074518,-500.0,0.00034246,2]
[310189243,1704393074527,-500.0,0.00034246,2]
[310189244,1704393074536,-500.0,0.00034246,2]
[310189245,1704393074545,-332.7481394,0.00034246,2]
[310189246,1704393074554,-500.0,0.00034246,2]
[310189247,1704393074563,-500.0,0.00034246,2]
[310189248,1704393074573,-500.0,0.00034246,2]
[310189249,1704393074583,-500.0,0.00034246,2]
[310189250,1704393074592,-500.0,0.00034246,2]
[310189251,1704393074601,-500.0,0.00034246,2]
[310189252,1704393074610,-500.0,0.00034246,2]
[310189253,1704393074620,-500.0,0.00034246,2]
[310189254,1704393074629,-500.0,0.00034246,2]
[310189255,1704393074638,-500.0,0.00034246,2]
[310189256,1704393074647,-500.0,0.00034246,2]
[310189257,1704393074657,-500.0,0.00034246,2]
[310189258,1704393074666,-500.0,0.00034246,2]
[310189259,1704393074675,-500.0,0.00034246,2]
[310189260,1704393074685,-500.0,0.00034246,2]
[310189261,1704393074694,-500.0,0.00034246,2]
[310189262,1704393074703,-500.0,0.00034246,2]
[310189263,1704393074713,-500.0,0.00034246,2]
[310189264,1704393074722,-500.0,0.00034246,2]
[310189265,1704393074732,-500.0,0.00034246,2]
[310189266,1704393074741,-607.75453028,0.00034246,2]
[310189267,1704393074751,-500.0,0.00034246,2]
[310189268,1704393074762,-500.0,0.00034246,2]
[310189269,1704393074771,-500.0,0.00034246,2]
[310189270,1704393074781,-500.0,0.00034246,2]
[310189271,1704393074790,-500.0,0.00034246,2]
[310189272,1704393074799,-500.0,0.00034246,2]
[310189273,1704393074809,-500.0,0.00034246,2]
[310189274,1704393074819,-500.0,0.00034246,2]
[310189275,1704393074828,-179.00994097,0.00034246,2]
[310189276,1704393074837,-500.0,0.00034246,2]
[310189277,1704393074846,-637.73388369,0.00034246,2]
[310189278,1704393074855,-500.0,0.00034246,2]
[310189279,1704393074864,-500.0,0.00034246,2]
[310189280,1704393074873,-198.99541316,0.00034246,2]
[310189281,1704393074882,-500.0,0.00034246,2]
[310189282,1704393074892,-500.0,0.00034246,2]
[310189283,1704393074901,-500.0,0.00034246,2]
[310189284,1704393074911,-500.0,0.00034246,2]
[310189285,1704393074920,-500.0,0.00034246,2]
[310189286,1704393074930,-500.0,0.00034246,2]
[310189287,1704393074940,-500.0,0.00034246,2]
[310189288,1704393074948,-500.0,0.00034246,2]
[310189289,1704393074957,-500.0,0.00034246,2]
[310189290,1704393074966,-500.0,0.00034246,2]
[310189291,1704393074976,-412.37,0.00034246,2]
[310189292,1704393074985,-500.0,0.00034246,2]
[310189293,1704393074995,-500.0,0.00034246,2]
[310189294,1704393075004,-500.0,0.00034246,2]
[310189295,1704393075014,-500.0,0.00034246,2]
[310189296,1704393075023,-500.0,0.00034246,2]
[310189297,1704393075032,-500.0,0.00034246,2]
[310189298,1704393075041,-500.0,0.00034246,2]
[310189299,1704393075050,-500.0,0.00034246,2]
[310189300,1704393075060,-500.0,0.00034246,2]
[310189301,1704393075069,-500.0,0.00034246,2]
[310189302,1704393075078,-500.0,0.00034246,2]
[310189303,1704393075088,-500.0,0.00034246,2]
[310189304,1704393075097,-500.0,0.00034246,2]
[310189305,1704393075106,-500.0,0.00034246,2]
[310189306,1704393075116,-500.0,0.00034246,2]
[310189307,1704393075125,-500.0,0.00034246,2]
[310189308,1704393075135,-500.0,0.00034246,2]
[310189309,1704393075145,-436.02271126,0.00034246,2]
[310189310,1704393075155,-500.0,0.00034246,2]
[310189311,1704393075166,-500.0,0.00034246,2]
[310189312,1704393075178,-260.0,0.00034246,2]
[310189313,1704393075187,-306.20124788,0.00034246,2]
[310189314,1704393075198,-500.0,0.00034246,2]
[310189315,1704393075208,-500.0,0.00034246,2]
[310189316,1704393075217,-500.0,0.00034246,2]
[310189317,1704393075226,-500.0,0.00034246,2]
[310189318,1704393075236,-500.0,0.00034246,2]
[310189319,1704393075245,-500.0,0.00034246,2]
[310189320,1704393075254,-500.0,0.00034246,2]
[310189321,1704393075264,-500.0,0.00034246,2]
[310189322,1704393075273,-500.0,0.00034246,2]
[310189323,1704393075282,-500.0,0.00034246,2]
[310189324,1704393075292,-500.0,0.00034246,2]
[310189325,1704393075301,-500.0,0.00034246,2]
[310189326,1704393075311,-500.0,0.00034246,2]
[310189327,1704393075321,-976.77,0.00034246,2]
[310189328,1704393075331,-491.24401583,0.00034246,2]
[310189329,1704393075340,-500.0,0.00034246,2]
[310189330,1704393075350,-500.0,0.00034246,2]
[310189331,1704393075360,-500.0,0.00034246,2]
[310189332,1704393075370,-500.0,0.00034246,2]
[310189333,1704393075379,-500.0,0.00034246,2]
[310189334,1704393075388,-500.0,0.00034246,2]
[310189335,1704393075398,-500.0,0.00034246,2]
[310189336,1704393075409,-500.0,0.00034246,2]
[310189337,1704393075418,-500.0,0.00034246,2]
[310189338,1704393075427,-500.0,0.00034246,2]
[310189339,1704393075437,-500.0,0.00034246,2]
[310189340,1704393075446,-500.0,0.00034246,2]
[310189341,1704393075455,-500.0,0.00034246,2]
[310189342,1704393075465,-500.0,0.00034246,2]
[310189343,1704393075475,-500.0,0.00034246,2]
[310189344,1704393075484,-500.0,0.00034246,2]
[310189345,1704393075493,-500.0,0.00034246,2]
[310189346,1704393075502,-500.0,0.00034246,2]
[310189347,1704393075511,-275.17094263,0.00034246,2]
[310189348,1704393075520,-500.0,0.00034246,2]
[310189349,1704393075580,-500.0,0.00034246,2]
[310189350,1704393075590,-500.0,0.00034246,2]
[310189351,1704393075599,-500.0,0.00034246,2]
[310189352,1704393075609,-500.0,0.00034246,2]
[310189353,1704393075618,-500.0,0.00034246,2]
[310189354,1704393075627,-500.0,0.00034246,2]
[310189355,1704393075636,-500.0,0.00034246,2]
[310189356,1704393075645,-500.0,0.00034246,2]
[310189357,1704393075654,-500.0,0.00034246,2]
[310189358,1704393075664,-500.0,0.00034246,2]
[310189359,1704393075673,-500.0,0.00034246,2]
[310189360,1704393075683,-200.13,0.00034246,2]
[310189361,1704393075692,-500.0,0.00034246,2]
[310189362,1704393075701,-500.0,0.00034246,2]
[310189363,1704393075711,-264.25907771,0.00034246,2]
[310189364,1704393075721,-500.0,0.00034246,2]
[310189365,1704393075730,-500.0,0.00034246,2]
[310189366,1704393075739,-500.0,0.00034246,2]
[310189367,1704393075749,-500.0,0.00034246,2]
[310189368,1704393075759,-500.0,0.00034246,2]
[310189369,1704393075769,-500.0,0.00034246,2]
[310189370,1704393075778,-500.0,0.00034246,2]
[310189371,1704393075787,-150.0,0.00034246,2]
[310189372,1704393075796,-500.0,0.00034246,2]
[310189373,1704393075805,-500.0,0.00034246,2]
[310189374,1704393075816,-500.0,0.00034246,2]
[310189375,1704393075825,-500.0,0.00034246,2]
[310189376,1704393075834,-500.0,0.00034246,2]
[310189377,1704393075843,-500.0,0.00034246,2]
[310189378,1704393075852,-500.0,0.00034246,2]
[310189379,1704393075862,-500.0,0.00034246,2]
[310189380,1704393075871,-552.43,0.00034246,2]
[310189381,1704393075880,-322.02298279,0.00034246,2]
[310189382,1704393075900,-500.0,0.00034246,2]
[310189383,1704393075910,-500.0,0.00034246,2]
[310189384,1704393075919,-500.0,0.00034246,2]
[310189385,1704393075929,-500.0,0.00034246,2]
[310189386,1704393075938,-300.11,0.00034246,2]
[310189387,1704393075948,-500.0,0.00034246,2]
[310189388,1704393075958,-500.0,0.00034246,2]
[310189389,1704393075967,-500.0,0.00034246,2]
[310189390,1704393075977,-727.84,0.00034246,2]
[310189391,1704393075986,-500.0,0.00034246,2]
[310189392,1704393075995,-847.81,0.00034246,2]
[310189393,1704393076005,-500.0,0.00034246,2]
[310189394,1704393076014,-500.0,0.00034246,2]
[310189395,1704393076023,-565.88,0.00034246,2]
[310189396,1704393076032,-500.0,0.00034246,2]
[310189397,1704393076041,-500.0,0.00034246,2]
[310189398,1704393076051,-217.14365233,0.00034246,2]
[310189399,1704393076060,-505.6,0.00034246,2]
[310189400,1704393076070,-500.0,0.00034246,2]
[310189401,1704393076079,-500.0,0.00034246,2]
[310189402,1704393076088,-500.0,0.00034246,2]
[310189403,1704393076098,-500.0,0.00034246,2]
[310189404,1704393076107,-500.0,0.00034246,2]
[310189405,1704393076117,-500.0,0.00034246,2]
[310189406,1704393076126,-923.12,0.00034246,2]
[310189407,1704393076136,-580.69,0.00034246,2]
[310189408,1704393076146,-500.0,0.00034246,2]
[310189409,1704393076154,-666.37,0.00034246,2]
[310189410,1704393076164,-500.0,0.00034246,2]
[310189411,1704393076174,-388.7260592,0.00034246,2]
[310189412,1704393076184,-500.0,0.00034246,2]
[310189413,1704393076193,-500.0,0.00034246,2]
[310189414,1704393076202,-500.0,0.00034246,2]
[310189415,1704393076213,-1513.45,0.00034246,2]
[310189416,1704393076225,-895.47,0.00034246,2]
[310189417,1704393076234,-500.0,0.00034246,2]
[310189418,1704393076244,-500.0,0.00034246,2]
[310189419,1704393076254,-500.0,0.00034246,2]
[310189420,1704393076264,-3479.72,0.00034246,2]
[310189421,1704393076274,-3924.97,0.00034246,2]
[310189422,1704393076283,-1047.71,0.00034246,2]
[310189423,1704393076293,-1037.24,0.00034246,2]
[310189424,1704393076303,-639.85,0.00034246,2]
[310189425,1704393076314,-712.94,0.00034246,2]
[310189426,1704393076323,-3613.69,0.00034246,2]
[310189427,1704393076333,-827.97,0.00034246,2]
[310189428,1704393076342,-1382.85,0.00034246,2]
[310189429,1704393076352,-529.32934626,0.00034246,2]
[310189430,1704393076361,-500.0,0.00034246,2]
[310189431,1704393076371,-1571.13,0.00034246,2]
[310189432,1704393076381,-743.8,0.00034246,2]
[310189433,1704393076391,-1739.16,0.00034246,2]
[310189434,1704393076401,-500.0,0.00034246,2]
[310189435,1704393076411,-3909.49,0.00034246,2]
[310189436,1704393076420,-907.27,0.00034246,2]
[310189437,1704393076430,-2517.38,0.00034246,2]
[310189438,1704393076439,-1992.47,0.00034246,2]
[310189439,1704393076449,-500.0,0.00034246,2]
[310189440,1704393076458,-500.0,0.00034246,2]
[310189441,1704393076467,-6040.39,0.00034246,2]
[310189442,1704393076479,-638.91,0.00034246,2]
[310189443,1704393076488,-500.0,0.00034246,2]
[310189444,1704393076497,-524.43218489,0.00034246,2]
[310189445,1704393076507,-3391.52,0.00034246,2]
[310189446,1704393076517,-979.57,0.00034246,2]
[310189447,1704393076526,-1116.96,0.00034246,2]
[310189448,1704393076536,-551.38,0.00034246,2]
[310189449,1704393076545,-1691.63,0.00034246,2]
[310189450,1704393076554,-3002.39,0.00034246,2]
[310189451,1704393076564,-9848.56,0.00034246,2]
[310189452,1704393076573,-500.0,0.00034246,2]
[310189453,1704393076582,-500.0,0.00034246,2]
[310189454,1704393076591,-2620.52,0.00034246,2]
[310189455,1704393076600,-847.43,0.00034246,2]
[310189456,1704393076611,-500.0,0.00034246,2]
[310189457,1704393076620,-2164.27,0.00034246,2]
[310189458,1704393076630,-500.0,0.00034246,2]
[310189459,1704393076639,-3882.14,0.00034246,2]
[310189460,1704393076649,-500.0,0.00034246,2]
[310189461,1704393076658,-500.0,0.00034246,2]
[310189462,1704393076667,-770.75,0.00034246,2]
[310189463,1704393076676,-500.0,0.00034246,2]
[310189464,1704393076687,-500.0,0.00034246,2]
[310189465,1704393076696,-1739.34,0.00034246,2]
[310189466,1704393076705,-603.57,0.00034246,2]
[310189467,1704393076715,-500.0,0.00034246,2]
[310189468,1704393076725,-1413.69,0.00034246,2]
[310189469,1704393076734,-500.0,0.00034246,2]
[310189470,1704393076743,-771.2,0.00034246,2]
[310189471,1704393076753,-1038.56,0.00034246,2]
[310189472,1704393076762,-500.0,0.00034246,2]
[310189473,1704393076771,-605.48,0.00034246,2]
[310189474,1704393076781,-500.0,0.00034246,2]
[310189475,1704393076791,-500.0,0.00034246,2]
[310189476,1704393076800,-3640.94,0.00034246,2]
[310189477,1704393076810,-513.84,0.00034246,2]
[310189478,1704393076820,-500.0,0.00034246,2]
[310189479,1704393076829,-500.0,0.00034246,2]
[310189480,1704393076839,-1548.29,0.00034246,2]
[310189481,1704393076850,-500.0,0.00034246,2]
[310189482,1704393076860,-1540.02,0.00034246,2]
[310189483,1704393076870,-500.0,0.00034246,2]
[310189484,1704393076879,-5366.2,0.00034246,2]
[310189485,1704393076888,-500.0,0.00034246,2]
[310189486,1704393076898,-979.53,0.00034246,2]
[310189487,1704393076908,-500.0,0.00034246,2]
[310189488,1704393076918,-500.0,0.00034246,2]
[310189489,1704393076927,-1006.3,0.00034246,2]
[310189490,1704393076937,-1535.97,0.00034246,2]
[310189491,1704393076946,-1513.83,0.00034246,2]
[310189492,1704393076955,-500.0,0.00034246,2]
[310189493,1704393076965,-890.61,0.00034246,2]
[310189494,1704393076974,-500.0,0.00034246,2]
[310189495,1704393076983,-500.0,0.00034246,2]
[310189496,1704393076993,-565.49,0.00034246,2]
[310189497,1704393077003,-500.0,0.00034246,2]
[310189498,1704393077013,-576.87,0.00034246,2]
[310189499,1704393077022,-1916.01,0.00034246,2]
[310189500,1704393077031,-500.0,0.00034246,2]
[310189501,1704393077040,-4181.93,0.00034246,2]
[310189502,1704393077049,-2086.82,0.00034246,2]
[310189503,1704393077059,-500.0,0.00034246,2]
[310189504,1704393077069,-500.0,0.00034246,2]
[310189505,1704393077079,-637.98,0.00034246,2]
[310189506,1704393077088,-809.81,0.00034246,2]
[310189507,1704393077098,-500.0,0.00034246,2]
[310189508,1704393077107,-651.52,0.00034246,2]
[310189509,1704393077116,-500.0,0.00034246,2]
[310189510,1704393077125,-500.0,0.00034246,2]
[310189511,1704393077134,-500.0,0.00034246,2]
[310189512,1704393077143,-7865.29,0.00034246,2]
[310189513,1704393077152,-500.0,0.00034246,2]
[310189514,1704393077162,-1084.98,0.00034246,2]
[310189515,1704393077172,-1422.0,0.00034246,2]
[310189516,1704393077180,-500.0,0.00034246,2]
[310189517,1704393077189,-558.54,0.00034246,2]
[310189518,1704393077198,-560.45,0.00034246,2]
[310189519,1704393077207,-500.0,0.00034246,2]
[310189520,1704393077217,-688.44,0.00034246,2]
[310189521,1704393077226,-1827.5,0.00034246,2]
[310189522,1704393077236,-590.76,0.00034246,2]
[310189523,1704393077246,-500.0,0.00034246,2]
[310189524,1704393077255,-500.0,0.00034246,2]
[310189525,1704393077264,-500.0,0.00034246,2]
[310189526,1704393077273,-500.0,0.00034246,2]
[310189527,1704393077283,-563.32,0.00034246,2]
[310189528,1704393077293,-614.15,0.00034246,2]
[310189529,1704393077310,-1496.86,0.00034246,2]
[310189530,1704393077319,-1622.69,0.00034246,2]
[310189531,1704393077329,-7567.89,0.00034246,2]
[310189532,1704393077340,-973.05,0.00034246,2]
[310189533,1704393077351,-1943.22,0.00034246,2]
[310189534,1704393077361,-500.0,0.00034246,2]
[310189535,1704393077370,-500.0,0.00034246,2]
[310189536,1704393077380,-832.65,0.00034246,2]
[310189537,1704393077390,-751.43,0.00034246,2]
[310189538,1704393077399,-500.0,0.00034246,2]
[310189539,1704393077409,-500.0,0.00034246,2]
[310189540,1704393077418,-500.0,0.00034246,2]
[310189541,1704393077428,-894.18,0.00034246,2]
[310189542,1704393077437,-500.0,0.00034246,2]
[310189543,1704393077447,-500.0,0.00034246,2]
[310189544,1704393077457,-623.42,0.00034246,2]
[310189545,1704393077466,-500.0,0.00034246,2]
[310189546,1704393077475,-545.14,0.00034246,2]
[310189547,1704393077485,-500.0,0.00034246,2]
[310189548,1704393077495,-500.0,0.00034246,2]
[310189549,1704393077504,-1914.26,0.00034246,2]
[310189550,1704393077513,-500.0,0.00034246,2]
[310189551,1704393077523,-500.0,0.00034246,2]
[310189552,1704393077532,-500.0,0.00034246,2]
[310189553,1704393077541,-1641.84,0.00034246,2]
[310189554,1704393077551,-602.53,0.00034246,2]
[310189555,1704393077561,-500.0,0.00034246,2]
[310189556,1704393077570,-874.07,0.00034246,2]
[310189557,1704393077579,-500.0,0.00034246,2]
[310189558,1704393077588,-500.0,0.00034246,2]
[310189559,1704393077598,-742.9,0.00034246,2]
[310189560,1704393077607,-616.85,0.00034246,2]
[310189561,1704393077617,-500.0,0.00034246,2]
[310189562,1704393077626,-500.0,0.00034246,2]
[310189563,1704393077636,-500.0,0.00034246,2]
[310189564,1704393077645,-500.0,0.00034246,2]
[310189565,1704393077655,-1626.8,0.00034246,2]
[310189566,1704393077664,-500.0,0.00034246,2]
[310189567,1704393077674,-1682.88,0.00034246,2]
[310189568,1704393077684,-500.0,0.00034246,2]
[310189569,1704393077693,-500.0,0.00034246,2]
[310189570,1704393077703,-500.0,0.00034246,2]
[310189571,1704393077713,-500.0,0.00034246,2]
[310189572,1704393077723,-500.0,0.00034246,2]
[310189573,1704393077732,-1646.14,0.00034246,2]
[310189574,1704393077742,-2169.3,0.00034246,2]
[310189575,1704393077751,-500.0,0.00034246,2]
[310189576,1704393077761,-500.0,0.00034246,2]
[310189577,1704393077771,-500.0,0.00034246,2]
[310189578,1704393077780,-1635.2,0.00034246,2]
[310189579,1704393077789,-882.54,0.00034246,2]
[310189580,1704393077798,-500.0,0.00034246,2]
[310189581,1704393077807,-500.0,0.00034246,2]
[310189582,1704393077819,-644.49,0.00034246,2]
[310189583,1704393077828,-500.0,0.00034246,2]
[310189584,1704393077837,-500.0,0.00034246,2]
[310189585,1704393077846,-1057.84,0.00034246,2]
[310189586,1704393077856,-500.0,0.00034246,2]
[310189587,1704393077865,-500.0,0.00034246,2]
[310189588,1704393077875,-539.45,0.00034246,2]
[310189589,1704393077884,-1064.36,0.00034246,2]
[310189590,1704393077894,-2032.28,0.00034246,2]
[310189591,1704393077903,-1022.82,0.00034246,2]
[310189592,1704393077912,-1198.45,0.00034246,2]
[310189593,1704393077922,-500.0,0.00034246,2]
[310189594,1704393077932,-500.0,0.00034246,2]
[310189595,1704393077941,-500.0,0.00034246,2]
[310189596,1704393077951,-151.0,0.00034246,7]
[310189597,1704393077961,-151.0,0.00034246,7]
[310189598,1704393077971,-162.761603,0.00034246,7]
[310189599,1704393077982,-162.761603,0.00034246,7]
[310189600,1704393077992,-158.5,0.00034271,2]
[310189601,1704393078002,-248.59740161,0.00034283,2]
[310189602,1704393078013,-151.69832518,0.00034309,2]
[310189603,1704393078022,-363.11,0.00034369,2]
[310189604,1704393078032,-572.33880898,0.00034409,6]
[310189605,1704393078041,-415.68,0.00034414,2]
[310189606,1704393078051,-1992.79,0.00034519,2]
[310189607,1704393078061,-500.0,0.0003452,2]
[310189608,1704393078071,-500.0,0.0003452,2]
[310189609,1704393078080,-500.0,0.0003452,2]
[310189610,1704393078090,-500.0,0.0003452,2]